fUST/lending_fUST_20250407
["ID","MTS","AMOUNT","RATE_DAILY","PERIOD"]
[357301585,1743999074696,-8705.04,0.00039726,7]
[357301586,1743999074705,-350.0,0.00039768,2]
[357301587,1743999074715,-500.0,0.00039776,7]
[357301588,1743999074724,-635.6606243,0.00039808,30]
[357301589,1743999074866,-563.9791657,0.00039808,30]
[357301590,1743999074876,-563.9791657,0.00039808,30]
[357301591,1743999074886,-563.9791657,0.00039808,30]
[357301592,1743999074895,-800.0,0.00039811,7]
[357301593,1743999074905,-800.0,0.0003984,7]
[357301594,1743999074916,-1861.9442166,0.00039862,4]
[357301595,1743999074925,-800.0,0.00039874,7]
[357301596,1743999074937,-572.9362815,0.0003989,30]
[357301597,1743999074946,-157.741449,0.0003994,8]
[357301598,1743999074956,-274.10954475,0.00039999,2]
[357301599,1743999074965,-500.0,0.00039999,2]
[357301600,1743999074974,-500.0,0.00039999,2]
[357301601,1743999074984,-500.0,0.00039999,2]
[357301602,1743999074994,-387.60820516,0.00039999,31]
[357301603,1743999075003,-238.02676611,0.00039999,31]
[357301604,1743999075015,-289.19269899,0.00039999,31]
[357301605,1743999075025,-500.0,0.00039999,31]
[357301606,1743999075036,-371.23630223,0.00039999,31]
[357301607,1743999075045,-500.0,0.00039999,31]
[357301608,1743999075054,-500.0,0.00039999,31]
[357301609,1743999075064,-500.0,0.00039999,31]
[357301610,1743999075074,-500.0,0.00039999,31]
[357301611,1743999075084,-356.37187462,0.00039999,31]
[357301612,1743999075093,-2000.0,0.0004,120]
[357301613,1743999075102,-200.0,0.0004,120]
[357301614,1743999075112,-268393.40055392,0.0004,3]
[357301615,1743999075121,-1730.46152425,0.0004,60]
[357301616,1743999075130,-5974.19585111,0.0004,120]
[357301617,1743999075139,-2471.28040899,0.0004,120]
[357301618,1743999075149,-3000.0,0.0004,120]
[357301619,1743999075158,-301.3545708,0.0004,7]
[357301620,1743999075168,-500.0,0.0004,7]
[357301621,1743999075178,-511.42,0.0004,7]
[357301622,1743999075190,-500.0,0.0004,7]
[357301623,1743999075199,-509.35,0.0004,7]
[357301624,1743999075209,-500.0,0.0004,7]
[357301625,1743999075219,-540.93,0.0004,7]
[357301626,1743999075229,-190.72515773,0.0004,7]
[357301627,1743999075239,-500.0,0.0004,7]
[357301628,1743999075249,-506.6181122,0.0004,7]
[357301629,1743999075258,-704.76,0.0004,7]
[357301630,1743999075268,-500.0,0.0004,7]
[357301631,1743999075278,-1047.59,0.0004,7]
[357301632,1743999075288,-1000.0,0.0004,30]
[357301633,1743999075297,-500.0,0.0004,7]
[357301634,1743999075307,-500.0,0.0004,7]
[357301635,1743999075316,-500.0,0.0004,7]
[357301636,1743999075326,-500.0,0.0004,7]
[357301637,1743999075336,-500.0,0.0004,7]
[357301638,1743999075346,-1299.52,0.0004,7]
[357301639,1743999075355,-500.0,0.0004,7]
[357301640,1743999075365,-500.0,0.0004,7]
[357301641,1743999075374,-589.31,0.0004,7]
[357301642,1743999075385,-961.09,0.0004,7]
[357301643,1743999075395,-152.44662043,0.0004,7]
[357301644,1743999075404,-2025.09,0.0004,4]
[357301645,1743999075415,-766.96,0.0004,7]
[357301646,1743999075425,-500.0,0.0004,7]
[357301647,1743999075440,-500.0,0.0004,7]
[357301648,1743999075450,-500.0,0.0004,7]
[357301649,1743999075460,-500.0,0.0004,7]
[357301650,1743999075470,-500.0,0.0004,7]
[357301651,1743999075479,-500.0,0.0004,7]
[357301652,1743999075490,-500.0,0.0004,7]
[357301653,1743999075500,-1006.09,0.0004,7]
[357301654,1743999075509,-500.0,0.0004,7]
[357301655,1743999075519,-500.0,0.0004,7]
[357301656,1743999075529,-505.78,0.0004,7]
[357301657,1743999075538,-500.0,0.0004,7]
[357301658,1743999075547,-1000.0,0.0004,30]
[357301659,1743999075556,-694.82,0.0004,7]
[357301660,1743999075566,-500.0,0.0004,7]
[357301661,1743999075576,-1406.25,0.0004,7]
[357301662,1743999075586,-500.0,0.0004,7]
[357301663,1743999075595,-1333.32,0.0004,7]
[357301664,1743999075605,-500.0,0.0004,7]
[357301665,1743999075614,-595.64,0.0004,7]
[357301666,1743999075623,-500.0,0.0004,7]
[357301667,1743999075634,-500.0,0.0004,7]
[357301668,1743999075644,-500.0,0.0004,7]
[357301669,1743999075652,-500.0,0.0004,7]
[357301670,1743999075663,-501.28,0.0004,7]
[357301671,1743999075672,-545.46,0.0004,7]
[357301672,1743999075683,-369.96975588,0.0004,7]
[357301673,1743999075692,-1298.7,0.0004,7]
[357301674,1743999075701,-500.0,0.0004,7]
[357301675,1743999075711,-500.0,0.0004,7]
[357301676,1743999075720,-500.0,0.0004,7]
[357301677,1743999075729,-513.45939288,0.0004,7]
[357301678,1743999075738,-579.21,0.0004,7]
[357301679,1743999075748,-816.37,0.0004,7]
[357301680,1743999075758,-500.0,0.0004,7]
[357301681,1743999075767,-500.0,0.0004,7]
[357301682,1743999075776,-500.0,0.0004,7]
[357301683,1743999075786,-500.0,0.0004,7]
[357301684,1743999075796,-528.93,0.0004,7]
[357301685,1743999075806,-504.09,0.0004,7]
[357301686,1743999075815,-539.99,0.0004,7]
[357301687,1743999075825,-500.0,0.0004,7]
[357301688,1743999075836,-500.0,0.0004,7]
[357301689,1743999075846,-622.51,0.0004,7]
[357301690,1743999075855,-500.0,0.0004,7]
[357301691,1743999075866,-500.0,0.0004,7]
[357301692,1743999075875,-1374.07,0.0004,7]
[357301693,1743999075885,-500.0,0.0004,7]
[357301694,1743999075894,-500.0,0.0004,7]
[357301695,1743999075904,-757.16,0.0004,7]
[357301696,1743999075913,-500.0,0.0004,7]
[357301697,1743999075923,-500.0,0.0004,7]
[357301698,1743999075934,-500.0,0.0004,7]
[357301699,1743999075944,-500.0,0.0004,7]
[357301700,1743999075953,-871.18,0.0004,7]
[357301701,1743999075963,-500.0,0.0004,7]
[357301702,1743999075972,-500.0,0.0004,7]
[357301703,1743999075982,-500.0,0.0004,7]
[357301704,1743999075991,-200.0,0.0004,7]
[357301705,1743999076001,-500.0,0.0004,7]
[357301706,1743999076011,-562.53,0.0004,7]
[357301707,1743999076021,-500.0,0.0004,7]
[357301708,1743999076032,-500.0,0.0004,7]
[357301709,1743999076044,-622.82,0.0004,7]
[357301710,1743999076054,-500.0,0.0004,7]
[357301711,1743999076064,-500.0,0.0004,7]
[357301712,1743999076073,-500.0,0.0004,7]
[357301713,1743999076093,-500.0,0.0004,7]
[357301714,1743999076110,-500.0,0.0004,7]
[357301715,1743999076124,-1670.91,0.0004,7]
[357301716,1743999076140,-503.66987342,0.0004,7]
[357301717,1743999076158,-1175.6,0.0004,7]
[357301718,1743999076174,-500.0,0.0004,7]
[357301719,1743999076192,-500.0,0.0004,7]
[357301720,1743999076207,-503.97,0.0004,7]
[357301721,1743999076221,-500.0,0.0004,7]
[357301722,1743999076236,-938.15,0.0004,7]
[357301723,1743999076251,-587.68803822,0.0004,7]
[357301724,1743999076262,-515.78,0.0004,7]
[357301725,1743999076276,-639.59,0.0004,7]
[357301726,1743999076290,-1047.08,0.0004,7]
[357301727,1743999076306,-500.0,0.0004,7]
[357301728,1743999076321,-595.91,0.0004,7]
[357301729,1743999076336,-500.0,0.0004,7]
[357301730,1743999076347,-500.0,0.0004,7]
[357301731,1743999076360,-342.27759237,0.0004,7]
[357301732,1743999076376,-500.0,0.0004,7]
[357301733,1743999076388,-500.0,0.0004,7]
[357301734,1743999076401,-500.0,0.0004,7]
[357301735,1743999076415,-500.0,0.0004,7]
[357301736,1743999076426,-500.0,0.0004,7]
[357301737,1743999076441,-436.1722915,0.0004,7]
[357301738,1743999076454,-612.75171893,0.0004,7]
[357301739,1743999076468,-506.18028576,0.0004,7]
[357301740,1743999076481,-594.33,0.0004,7]
[357301741,1743999076494,-2427.28,0.0004,7]
[357301742,1743999076524,-500.0,0.0004,7]
[357301743,1743999076545,-523.68,0.0004,7]
[357301744,1743999076564,-702.99,0.0004,7]
[357301745,1743999076581,-500.0,0.0004,7]
[357301746,1743999076599,-500.0,0.0004,7]
[357301747,1743999076616,-507.46647239,0.0004,7]
[357301748,1743999076632,-690.62,0.0004,7]
[357301749,1743999076648,-500.0,0.0004,7]
[357301750,1743999076662,-1235.1,0.0004,7]
[357301751,1743999076677,-500.0,0.0004,7]
[357301752,1743999076694,-500.0,0.0004,7]
[357301753,1743999076709,-1129.9,0.0004,7]
[357301754,1743999076724,-2511.7,0.0004,7]
[357301755,1743999076739,-500.0,0.0004,7]
[357301756,1743999076754,-500.0,0.0004,7]
[357301757,1743999076767,-882.15,0.0004,7]
[357301758,1743999076781,-2115.76,0.0004,7]
[357301759,1743999076794,-500.0,0.0004,7]
[357301760,1743999076809,-500.0,0.0004,7]
[357301761,1743999076823,-500.0,0.0004,7]
[357301762,1743999076837,-606.38276266,0.0004,7]
[357301763,1743999076850,-500.0,0.0004,7]
[357301764,1743999076863,-500.0,0.0004,7]
[357301765,1743999076876,-500.0,0.0004,7]
[357301766,1743999076889,-500.0,0.0004,7]
[357301767,1743999076902,-500.0,0.0004,7]
[357301768,1743999076916,-500.0,0.0004,7]
[357301769,1743999076929,-1957.15,0.0004,7]
[357301770,1743999076945,-1244.29,0.0004,7]
[357301771,1743999076958,-500.0,0.0004,7]
[357301772,1743999076972,-500.0,0.0004,7]
[357301773,1743999076985,-971.01,0.0004,7]
[357301774,1743999076998,-439.52019112,0.0004,7]
[357301775,1743999077011,-500.0,0.0004,7]
[357301776,1743999077030,-500.0,0.0004,7]
[357301777,1743999077043,-573.33,0.0004,7]
[357301778,1743999077057,-500.0,0.0004,7]
[357301779,1743999077071,-1079.38,0.0004,7]
[357301780,1743999077094,-605.64104969,0.0004,7]
[357301781,1743999077111,-2231.25,0.0004,7]
[357301782,1743999077127,-633.15,0.0004,7]
[357301783,1743999077141,-500.0,0.0004,7]
[357301784,1743999077157,-860.01,0.0004,7]
[357301785,1743999077170,-1123.02,0.0004,7]
[357301786,1743999077185,-500.0,0.0004,7]
[357301787,1743999077200,-500.0,0.0004,7]
[357301788,1743999077214,-500.0,0.0004,7]
[357301789,1743999077229,-500.0,0.0004,7]
[357301790,1743999077243,-500.0,0.0004,7]
[357301791,1743999077257,-500.0,0.0004,7]
[357301792,1743999077271,-1176.27,0.0004,7]
[357301793,1743999077286,-500.0,0.0004,7]
[357301794,1743999077300,-500.0,0.0004,7]
[357301795,1743999077314,-503.830931,0.0004,7]
[357301796,1743999077328,-2998.3,0.0004,7]
[357301797,1743999077341,-953.53,0.0004,7]
[357301798,1743999077354,-500.0,0.0004,7]
[357301799,1743999077371,-1355.54,0.0004,7]
[357301800,1743999077385,-500.0,0.0004,7]
[357301801,1743999077398,-510.26637638,0.0004,7]
[357301802,1743999077412,-3062.34,0.0004,7]
[357301803,1743999077425,-383.59271705,0.0004,7]
[357301804,1743999077441,-500.0,0.0004,7]
[357301805,1743999077456,-500.0,0.0004,7]
[357301806,1743999077469,-512.02658237,0.0004,7]
[357301807,1743999077482,-1613.69,0.0004,7]
[357301808,1743999077495,-798.12,0.0004,7]
[357301809,1743999077510,-500.0,0.0004,7]
[357301810,1743999077523,-3548.41,0.0004,7]
[357301811,1743999077537,-500.0,0.0004,7]
[357301812,1743999077550,-500.0,0.0004,7]
[357301813,1743999077564,-704.04,0.0004,7]
[357301814,1743999077576,-2545.27,0.0004,7]
[357301815,1743999077590,-500.0,0.0004,7]
[357301816,1743999077603,-7458.22,0.0004,7]
[357301817,1743999077616,-500.0,0.0004,7]
[357301818,1743999077629,-1543.8,0.0004,7]
[357301819,1743999077642,-500.0,0.0004,7]
[357301820,1743999077655,-1149.97,0.0004,7]
[357301821,1743999077669,-500.0,0.0004,7]
[357301822,1743999077685,-500.0,0.0004,7]
[357301823,1743999077698,-1198.06,0.0004,7]
[357301824,1743999077712,-635.38,0.0004,7]
[357301825,1743999077725,-541.59,0.0004,7]
[357301826,1743999077738,-1015.47,0.0004,7]
[357301827,1743999077751,-546.01,0.0004,7]
[357301828,1743999077764,-500.0,0.0004,7]
[357301829,1743999077777,-1323.14,0.0004,7]
[357301830,1743999077790,-500.0,0.0004,7]
[357301831,1743999077804,-1756.05,0.0004,7]
[357301832,1743999077817,-500.0,0.0004,7]
[357301833,1743999077831,-577.2,0.0004,7]
[357301834,1743999078045,-500.0,0.0004,7]
[357301835,1743999078072,-500.0,0.0004,7]
[357301836,1743999078082,-4122.85,0.0004,7]
[357301837,1743999078093,-776.24,0.0004,7]
[357301838,1743999078103,-500.0,0.0004,7]
[357301839,1743999078117,-500.0,0.0004,7]
[357301840,1743999078127,-1159.91,0.0004,7]
[357301841,1743999078136,-758.62,0.0004,7]
[357301842,1743999078146,-500.0,0.0004,7]
[357301843,1743999078156,-1598.41,0.0004,7]
[357301844,1743999078166,-557.22,0.0004,7]
[357301845,1743999078175,-20494.34,0.0004,7]
[357301846,1743999078187,-606.51,0.0004,7]
[357301847,1743999078197,-500.0,0.0004,7]
[357301848,1743999078207,-801.33,0.0004,7]
[357301849,1743999078217,-500.0,0.0004,7]
[357301850,1743999078227,-500.0,0.0004,7]
[357301851,1743999078237,-455.48604499,0.0004,7]
[357301852,1743999078246,-500.0,0.0004,7]
[357301853,1743999078256,-500.0,0.0004,7]
[357301854,1743999078266,-528.76,0.0004,7]
[357301855,1743999078275,-200.063599,0.0004,7]
[357301856,1743999078286,-500.0,0.0004,7]
[357301857,1743999078296,-1791.73,0.0004,7]
[357301858,1743999078305,-500.0,0.0004,7]
[357301859,1743999078323,-500.0,0.0004,7]
[357301860,1743999078337,-500.0,0.0004,7]
[357301861,1743999078348,-2408.79,0.0004,7]
[357301862,1743999078358,-500.0,0.0004,7]
[357301863,1743999078368,-500.0,0.0004,7]
[357301864,1743999078378,-500.0,0.0004,7]
[357301865,1743999078388,-976.13,0.0004,7]
[357301866,1743999078398,-2860.97,0.0004,2]
[357301867,1743999078409,-24527.72291907,0.0004,120]
[357301868,1743999078419,-500.0,0.0004,7]
[357301869,1743999078430,-500.0,0.0004,7]
[357301870,1743999078443,-357.614498,0.0004,7]
[357301871,1743999078454,-554.55,0.0004,7]
[357301872,1743999078465,-500.0,0.0004,7]
[357301873,1743999078475,-532.17577699,0.0004,7]
[357301874,1743999078486,-6441.92,0.0004,7]
[357301875,1743999078497,-500.0,0.0004,7]
[357301876,1743999078508,-562.22,0.0004,7]
[357301877,1743999078519,-500.0,0.0004,7]
[357301878,1743999078530,-1285.05,0.0004,7]
[357301879,1743999078540,-6825.27,0.0004,7]
[357301880,1743999078551,-500.0,0.0004,7]
[357301881,1743999078562,-500.0,0.0004,7]
[357301882,1743999078572,-533.02,0.0004,7]
[357301883,1743999078583,-500.0,0.0004,7]
[357301884,1743999078595,-7038.46,0.0004,7]
[357301885,1743999078606,-850.81,0.0004,7]
[357301886,1743999078616,-500.0,0.0004,7]
[357301887,1743999078626,-749.51,0.0004,7]
[357301888,1743999078637,-500.0,0.0004,7]
[357301889,1743999078647,-9271.27,0.0004,7]
[357301890,1743999078657,-815.55,0.0004,7]
[357301891,1743999078667,-740.56,0.0004,7]
[357301892,1743999078677,-500.0,0.0004,7]
[357301893,1743999078691,-7581.46,0.0004,7]
[357301894,1743999078702,-2322.26,0.0004,7]
[357301895,1743999078712,-500.0,0.0004,7]
[357301896,1743999078723,-1678.06,0.0004,7]
[357301897,1743999078733,-500.0,0.0004,7]
[357301898,1743999078744,-500.0,0.0004,7]
[357301899,1743999078754,-546.3,0.0004,7]
[357301900,1743999078764,-500.0,0.0004,7]
[357301901,1743999078775,-2239.86,0.0004,7]
[357301902,1743999078786,-500.0,0.0004,7]
[357301903,1743999078796,-1992.21,0.0004,7]
[357301904,1743999078807,-5222.49,0.0004,7]
[357301905,1743999078816,-276.47061727,0.0004,7]
[357301906,1743999078827,-4754.1,0.0004,7]
[357301907,1743999078837,-2107.47,0.0004,7]
[357301908,1743999078848,-2901.78,0.0004,7]
[357301909,1743999078858,-500.0,0.0004,7]
[357301910,1743999078869,-500.0,0.0004,7]
[357301911,1743999078879,-500.0,0.0004,7]
[357301912,1743999078890,-500.0,0.0004,7]
[357301913,1743999078900,-1000.0,0.0004,3]
[357301914,1743999078911,-525.89,0.0004,7]
[357301915,1743999078921,-1115.98,0.0004,7]
[357301916,1743999078931,-1085.62,0.0004,7]
[357301917,1743999078945,-500.0,0.0004,7]
[357301918,1743999078955,-1195.53,0.0004,7]
[357301919,1743999078966,-500.0,0.0004,7]
[357301920,1743999078977,-500.0,0.0004,7]
[357301921,1743999078987,-10765.04,0.0004,7]
[357301922,1743999078998,-2187.41,0.0004,7]
[357301923,1743999079009,-535.02,0.0004,7]
[357301924,1743999079024,-500.0,0.0004,7]
[357301925,1743999079035,-712.26,0.0004,7]
[357301926,1743999079050,-568.12,0.0004,7]
[357301927,1743999079062,-500.0,0.0004,7]
[357301928,1743999079073,-500.0,0.0004,7]
[357301929,1743999079083,-1109.5,0.0004,7]
[357301930,1743999079094,-6670.03,0.0004,7]
[357301931,1743999079105,-500.0,0.0004,7]
[357301932,1743999079116,-675.86,0.0004,7]
[357301933,1743999079126,-500.0,0.0004,7]
[357301934,1743999079136,-1071.0,0.0004,7]
[357301935,1743999079146,-577.23499946,0.0004,7]
[357301936,1743999079156,-500.0,0.0004,7]
[357301937,1743999079167,-568.72,0.0004,7]
[357301938,1743999079177,-405.93430566,0.0004,7]
[357301939,1743999079189,-808.46,0.0004,7]
[357301940,1743999079200,-500.0,0.0004,7]
[357301941,1743999079210,-500.0,0.0004,7]
[357301942,1743999079220,-500.0,0.0004,7]
[357301943,1743999079230,-500.0,0.0004,7]
[357301944,1743999079241,-4170.44,0.0004,7]
[357301945,1743999079251,-1807.07,0.0004,7]
[357301946,1743999079261,-677.08333333,0.0004,3]
[357301947,1743999079271,-500.0,0.0004,7]
[357301948,1743999079282,-500.0,0.0004,7]
[357301949,1743999079297,-500.0,0.0004,7]
[357301950,1743999079308,-500.0,0.0004,7]
[357301951,1743999079319,-2267.94,0.0004,7]
[357301952,1743999079329,-8180.17,0.0004,7]
[357301953,1743999079339,-500.0,0.0004,7]
[357301954,1743999079349,-500.0,0.0004,7]
[357301955,1743999079360,-500.0,0.0004,7]
[357301956,1743999079370,-500.0,0.0004,7]
[357301957,1743999079381,-500.0,0.0004,7]
[357301958,1743999079393,-500.0,0.0004,7]
[357301959,1743999079404,-537.36,0.0004,7]
[357301960,1743999079414,-1000.0,0.0004,90]
[357301961,1743999079424,-500.0,0.0004,7]
[357301962,1743999079434,-500.0,0.0004,7]
[357301963,1743999079451,-623.7,0.0004,7]
[357301964,1743999079465,-18560.06,0.0004,7]
[357301965,1743999079477,-500.0,0.0004,7]
[357301966,1743999079487,-8705.04,0.0004,7]
[357301967,1743999079497,-800.0,0.00040049,7]
[357301968,1743999079507,-800.0,0.00040193,7]
[357301969,1743999079517,-12527.9349248,0.00040218,2]
[357301970,1743999079527,-160.0,0.00040218,2]
[357301971,1743999079537,-419.36665037,0.00040229,2]
[357301972,1743999079547,-500.0,0.00040273,7]
[357301973,1743999079557,-511.42,0.00040273,7]
[357301974,1743999079566,-500.0,0.00040273,7]
[357301975,1743999079577,-509.35,0.00040273,7]
[357301976,1743999079587,-538.53187489,0.00040273,7]
[357301977,1743999079596,-540.93,0.00040273,7]
[357301978,1743999079607,-500.0,0.00040273,7]
[357301979,1743999079616,-704.76,0.00040273,7]
[357301980,1743999079626,-565.21828555,0.00040273,7]
[357301981,1743999079636,-1047.59,0.00040273,7]
[357301982,1743999079646,-1000.0,0.00040273,30]
[357301983,1743999079655,-500.0,0.00040273,7]
[357301984,1743999079665,-500.0,0.00040273,7]
[357301985,1743999079675,-500.0,0.00040273,7]
[357301986,1743999079685,-500.0,0.00040273,7]
[357301987,1743999079702,-500.0,0.00040273,7]
[357301988,1743999079712,-1299.52,0.00040273,7]
[357301989,1743999079723,-500.0,0.00040273,7]
[357301990,1743999079733,-500.0,0.00040273,7]
[357301991,1743999079743,-589.31,0.00040273,7]
[357301992,1743999079753,-961.09,0.00040273,7]
[357301993,1743999079763,-766.96,0.00040273,7]
[357301994,1743999079773,-500.0,0.00040273,7]
[357301995,1743999079783,-500.0,0.00040273,7]
[357301996,1743999079793,-500.0,0.00040273,7]
[357301997,1743999079803,-500.0,0.00040273,7]
[357301998,1743999079813,-500.0,0.00040273,7]
[357301999,1743999079822,-500.0,0.00040273,7]
[357302000,1743999079835,-500.0,0.00040273,7]
[357302001,1743999079845,-1006.09,0.00040273,7]
[357302002,1743999079855,-500.0,0.00040273,7]
[357302003,1743999079864,-500.0,0.00040273,7]
[357302004,1743999079874,-500.0,0.00040273,7]
[357302005,1743999079883,-505.78,0.00040273,7]
[357302006,1743999079892,-954.8445769,0.00040273,30]
[357302007,1743999079902,-694.82,0.00040273,7]
[357302008,1743999079912,-500.0,0.00040273,7]
[357302009,1743999079922,-1406.25,0.00040273,7]
[357302010,1743999079932,-500.0,0.00040273,7]
[357302011,1743999079946,-1333.32,0.00040273,7]
[357302012,1743999079955,-500.0,0.00040273,7]
[357302013,1743999079965,-595.64,0.00040273,7]
[357302014,1743999079974,-500.0,0.00040273,7]
[357302015,1743999079984,-500.0,0.00040273,7]
[357302016,1743999079994,-206.45390366,0.00040273,7]
[357302017,1743999080003,-501.28,0.00040273,7]
[357302018,1743999080013,-500.0,0.00040273,7]
[357302019,1743999080024,-545.46,0.00040273,7]
[357302020,1743999080039,-1298.7,0.00040273,7]
[357302021,1743999080048,-500.0,0.00040273,7]
[357302022,1743999080059,-500.0,0.00040273,7]
[357302023,1743999080068,-500.0,0.00040273,7]
[357302024,1743999080078,-579.21,0.00040273,7]
[357302025,1743999080088,-816.37,0.00040273,7]
[357302026,1743999080097,-500.0,0.00040273,7]
[357302027,1743999080109,-500.0,0.00040273,7]
[357302028,1743999080119,-500.0,0.00040273,7]
[357302029,1743999080129,-500.0,0.00040273,7]
[357302030,1743999080138,-528.93,0.00040273,7]
[357302031,1743999080150,-504.09,0.00040273,7]
[357302032,1743999080159,-539.99,0.00040273,7]
[357302033,1743999080168,-500.0,0.00040273,7]
[357302034,1743999080178,-500.0,0.00040273,7]
[357302035,1743999080187,-622.51,0.00040273,7]
[357302036,1743999080201,-500.0,0.00040273,7]
[357302037,1743999080211,-500.0,0.00040273,7]
[357302038,1743999080220,-1374.07,0.00040273,7]
[357302039,1743999080230,-500.0,0.00040273,7]
[357302040,1743999080240,-500.0,0.00040273,7]
[357302041,1743999080249,-757.16,0.00040273,7]
[357302042,1743999080259,-500.0,0.00040273,7]
[357302043,1743999080268,-500.0,0.00040273,7]
[357302044,1743999080278,-500.0,0.00040273,7]
[357302045,1743999080287,-500.0,0.00040273,7]
[357302046,1743999080297,-871.18,0.00040273,7]
[357302047,1743999080306,-500.0,0.00040273,7]
[357302048,1743999080316,-500.0,0.00040273,7]
[357302049,1743999080326,-500.0,0.00040273,7]
[357302050,1743999080335,-200.0,0.00040273,7]
[357302051,1743999080344,-500.0,0.00040273,7]
[357302052,1743999080354,-562.53,0.00040273,7]
[357302053,1743999080363,-500.0,0.00040273,7]
[357302054,1743999080373,-500.0,0.00040273,7]
[357302055,1743999080382,-622.82,0.00040273,7]
[357302056,1743999080391,-500.0,0.00040273,7]
[357302057,1743999080401,-500.0,0.00040273,7]
[357302058,1743999080411,-609.57577112,0.00040273,7]
[357302059,1743999080420,-500.0,0.00040273,7]
[357302060,1743999080430,-500.0,0.00040273,7]
[357302061,1743999080443,-1670.91,0.00040273,7]
[357302062,1743999080453,-1175.6,0.00040273,7]
[357302063,1743999080463,-362.3162006,0.00040273,7]
[357302064,1743999080473,-500.0,0.00040273,7]
[357302065,1743999080484,-503.97,0.00040273,7]
[357302066,1743999080493,-500.0,0.00040273,7]
[357302067,1743999080503,-938.15,0.00040273,7]
[357302068,1743999080513,-515.78,0.00040273,7]
[357302069,1743999080522,-639.59,0.00040273,7]
[357302070,1743999080532,-1047.08,0.00040273,7]
[357302071,1743999080542,-500.0,0.00040273,7]
[357302072,1743999080551,-595.91,0.00040273,7]
[357302073,1743999080561,-500.0,0.00040273,7]
[357302074,1743999080571,-500.0,0.00040273,7]
[357302075,1743999080580,-636.09462418,0.00040273,7]
[357302076,1743999080590,-500.0,0.00040273,7]
[357302077,1743999080600,-500.0,0.00040273,7]
[357302078,1743999080609,-481.11384222,0.00040273,7]
[357302079,1743999080619,-500.0,0.00040273,7]
[357302080,1743999080628,-594.33,0.00040273,7]
[357302081,1743999080638,-2427.28,0.00040273,7]
[357302082,1743999080647,-500.0,0.00040273,7]
[357302083,1743999080657,-523.68,0.00040273,7]
[357302084,1743999080666,-702.99,0.00040273,7]